bitfinex/quotes_SOLUSD_20251103
["timestamp","ask_amount","ask_price","bid_price","bid_amount"]
[1762199865446,4.00231755,167.38,167.34,6.67576749]
[1762199865761,4.00231755,167.38,167.32,5.97645977]
[1762199865762,11.96075661,167.38,167.32,5.97645977]
[1762199865936,4.31231755,167.37,167.32,5.97645977]
[1762199866136,7.64843906,167.38,167.32,5.97645977]
[1762199866137,4.00231755,167.38,167.33,0.7]
[1762199866532,4.00231755,167.38,167.34,5.97585753]
[1762199866759,9.97677656,167.38,167.32,6.67626404]
[1762199866956,4.31231755,167.37,167.32,5.97626404]
[1762199867155,4.31231755,167.37,167.29,35.53581305]
[1762199867156,9.78882769,167.36,167.31,6.67680316]
[1762199867451,13.79114524,167.36,167.31,6.67680316]
[1762199867660,13.79114524,167.36,167.32,0.7]
[1762199867661,9.78882769,167.36,167.32,0.7]
[1762199868253,4.00503481,167.37,167.32,6.67633044]
[1762199868762,4.00503481,167.37,167.33,0.7]
[1762199869358,4.00503481,167.38,167.33,0.7]
[1762199870462,9.9794754,167.38,167.34,5.97585753]
[1762199870648,10.2894754,167.38,167.34,5.97585753]
[1762199870958,9.9794754,167.38,167.34,6.67585753]
[1762199872239,4.00503481,167.38,167.34,6.67585753]
[1762199873272,4.00503481,167.38,167.35,0.7]
[1762199873567,4.00503481,167.38,167.34,6.67585753]
[1762199873757,4.00503481,167.38,167.34,5.97585753]
[1762199873955,4.00503481,167.39,167.35,0.7]
[1762199874163,9.97843098,167.41,167.36,5.9751434]
[1762199874345,4.00503481,167.4,167.36,5.9751434]
[1762199874542,4.00503481,167.4,167.36,6.6751434]
[1762199874741,4.00503481,167.39,167.36,6.6751434]
[1762199874941,4.00503481,167.4,167.36,6.6751434]
[1762199875149,4.00503481,167.39,167.36,6.6751434]
[1762199875356,4.00503481,167.4,167.36,6.6751434]
[1762199875556,4.00503481,167.39,167.36,5.9751434]
[1762199875758,10.28881498,167.4,167.35,5.97537821]
[1762199875966,4.00503481,167.39,167.35,5.97537821]
[1762199876170,4.00503481,167.39,167.35,6.67537821]
[1762199876681,4.00503481,167.39,167.36,0.7]
[1762199876849,4.00503481,167.39,167.36,5.97502095]
[1762199877644,4.00503481,167.39,167.36,6.67502095]
[1762199877845,4.00503481,167.4,167.36,6.67502095]
[1762199878056,4.00503481,167.39,167.36,6.67502095]
[1762199878368,4.00503481,167.4,167.36,6.67502095]
[1762199878682,4.00503481,167.4,167.37,6.67477961]
[1762199878985,15.76187141,167.42,167.34,14.93964383]
[1762199878986,9.9784347,167.41,167.36,5.97488378]
[1762199879167,4.00503481,167.4,167.36,5.97488378]
[1762199879472,4.00503481,167.39,167.36,6.67488378]
[1762199879679,4.00503481,167.4,167.36,6.67488378]
[1762199879977,4.00503481,167.39,167.36,6.67488378]
[1762199880363,4.00503481,167.39,167.37,0.7]
[1762199880870,10.28912308,167.39,167.33,5.97621466]
[1762199881075,4.00503481,167.38,167.33,6.67621466]
[1762199881281,4.00503481,167.38,167.33,5.97621466]
[1762199881451,4.00503481,167.38,167.33,6.67621466]
[1762199881652,4.00503481,167.38,167.33,5.97621466]
[1762199881878,4.00503481,167.38,167.34,0.7]
[1762199882875,4.00503481,167.38,167.34,6.67551424]
[1762199883759,4.00503481,167.38,167.32,14.94110979]
[1762199883760,17.74726675,167.37,167.31,6.67681482]
[1762199883949,9.78882769,167.37,167.31,21.61913745]
[1762199884154,13.79659436,167.37,167.32,0.7]
[1762199884882,27.72999819,167.37,167.32,0.7]
[1762199885080,4.00776667,167.36,167.32,0.7]
[1762199886282,9.98301695,167.36,167.32,6.67654985]
[1762199886704,7.64843906,167.33,167.28,0.7]
[1762199886899,11.65620573,167.34,167.29,0.7]
[1762199887194,4.00776667,167.33,167.29,0.7]
[1762199887487,4.00776667,167.34,167.29,0.7]
[1762199887658,4.00776667,167.33,167.29,0.7]
[1762199887857,4.00776667,167.34,167.29,0.7]
[1762199888361,4.00776667,167.33,167.29,6.67739157]
[1762199888874,4.00776667,167.32,167.29,6.67739157]
[1762199889078,9.78882769,167.32,167.27,6.67828442]
[1762199889278,13.79659436,167.32,167.27,5.97828442]
[1762199889592,4.00776667,167.31,167.28,0.7]
[1762199889786,13.79659436,167.32,167.28,0.7]
[1762199890188,9.78882769,167.32,167.29,5.97764361]
[1762199890392,9.78882769,167.32,167.28,6.67791078]
[1762199890689,4.01664371,167.33,167.28,6.67791078]
[1762199890852,4.01664371,167.32,167.29,0.7]
[1762199891058,9.78882769,167.38,167.29,0.7]
[1762199891281,4.01718164,167.37,167.29,0.7]
[1762199891458,4.01718164,167.36,167.29,0.7]
[1762199891659,4.01718164,167.35,167.29,0.7]
[1762199891859,4.01718164,167.34,167.29,0.7]
[1762199892158,0.31,167.37,167.29,0.7]
[1762199892159,4.01718164,167.33,167.29,0.7]
[1762199892484,9.78882769,167.36,167.3,5.97728631]
[1762199892779,4.02222589,167.35,167.3,5.97728631]
[1762199892985,4.02222589,167.34,167.31,0.7]
[1762199893163,9.78882769,167.36,167.31,0.7]
[1762199893357,4.02241692,167.35,167.31,0.7]
[1762199893566,4.02241692,167.34,167.31,0.7]
[1762199893764,10.09882769,167.36,167.31,0.7]
[1762199893982,4.02253315,167.35,167.31,0.7]
[1762199894180,4.02253315,167.34,167.31,0.7]
[1762199894381,5.31863548,167.38,167.32,5.97657183]
[1762199894564,4.02260433,167.37,167.32,20.91800142]
[1762199894765,9.78882769,167.4,167.33,0.7]
[1762199895076,4.0207615,167.39,167.33,0.7]
[1762199895278,4.0207615,167.38,167.33,0.7]
[1762199895480,4.0207615,167.37,167.33,0.7]
[1762199895684,4.0207615,167.36,167.33,0.7]
[1762199895970,10.09882769,167.4,167.33,0.7]
[1762199896167,4.01976646,167.39,167.34,5.97585753]
[1762199896376,4.01976646,167.38,167.34,5.97585753]
[1762199896574,4.01976646,167.37,167.34,6.67585753]
[1762199896783,4.01976646,167.36,167.34,6.67585753]
[1762199896980,21.08122655,167.4,167.34,6.67585753]
[1762199897190,4.01868735,167.39,167.34,6.67585753]
[1762199897387,4.01868735,167.38,167.34,6.67585753]
[1762199897691,4.01868735,167.37,167.34,6.67585753]
[1762199897889,4.01868735,167.36,167.34,6.67585753]
[1762199898073,4.01868735,167.35,167.34,6.67585753]
[1762199898479,4.01868735,167.35,167.33,5.97611889]
[1762199898669,5.9745293,167.38,167.33,5.97611889]
[1762199898870,4.02199001,167.37,167.34,0.7]
[1762199899072,4.02199001,167.36,167.34,0.7]
[1762199899277,9.78882769,167.38,167.34,0.7]
[1762199899477,4.0219582,167.37,167.34,0.7]
[1762199899680,4.0219582,167.36,167.34,0.7]
[1762199899881,9.78882769,167.38,167.34,0.7]
[1762199900087,4.0216083,167.37,167.34,0.7]
[1762199900290,4.0216083,167.36,167.34,5.97582509]
[1762199900483,4.0216083,167.35,167.34,6.67582509]
[1762199900884,4.0216083,167.35,167.34,0.7]
[1762199901084,4.0216083,167.35,167.31,5.97692905]
[1762199901277,4.0216083,167.34,167.32,0.7]
[1762199901478,9.78882769,167.38,167.32,0.7]
[1762199901678,4.01961893,167.37,167.32,0.7]
[1762199901881,4.01961893,167.36,167.32,0.7]
[1762199902095,4.01961893,167.35,167.32,0.7]
[1762199902293,9.78882769,167.38,167.33,5.97621466]
[1762199902500,4.0195483,167.37,167.33,5.97621466]
[1762199902702,4.0195483,167.36,167.33,6.67621466]
[1762199902883,4.0195483,167.35,167.33,6.67621466]
[1762199903089,4.0195483,167.34,167.33,5.97621466]
[1762199903685,4.0195483,167.34,167.33,6.67621466]
[1762199903902,9.78882769,167.38,167.33,6.67621466]
[1762199904079,4.01975231,167.37,167.34,0.7]
[1762199904284,4.01975231,167.36,167.35,5.97550044]
[1762199904984,4.01975231,167.36,167.34,6.6757762]
[1762199905204,4.01975231,167.35,167.34,6.6757762]
[1762199907908,4.01975231,167.35,167.34,5.9757762]
[1762199908103,4.01975231,167.35,167.33,5.97615378]
[1762199908288,4.01975231,167.34,167.33,5.97615378]
[1762199908485,4.01975231,167.34,167.33,6.63615378]
[1762199909184,21.08196587,167.38,167.33,6.63615378]
[1762199909185,4.01941233,167.37,167.33,6.63615378]
[1762199909403,4.01941233,167.36,167.33,0.66]
[1762199909722,4.01941233,167.35,167.33,6.63619831]
[1762199909881,16.07334452,167.38,167.33,6.63619831]
[1762199910193,4.32857274,167.37,167.31,5.97682478]
[1762199910396,4.01857274,167.36,167.31,5.97682478]
[1762199910595,4.01857274,167.35,167.32,0.66]
[1762199910901,4.01857274,167.34,167.32,0.66]
[1762199911101,6.28483997,167.37,167.33,5.97621466]
[1762199911306,4.01804103,167.36,167.33,5.97621466]
[1762199911509,6.28483997,167.37,167.33,6.63621466]
[1762199911510,4.01804103,167.35,167.33,6.63621466]
[1762199911810,4.01804103,167.34,167.33,6.63621466]
[1762199912805,4.01924656,167.36,167.33,21.57675132]
[1762199913008,9.78882769,167.4,167.34,0.66]
[1762199913214,9.78882769,167.4,167.31,14.94202384]
[1762199913215,0.31,167.36,167.31,5.97692905]
[1762199913422,4.01944423,167.35,167.31,5.97692905]
[1762199913626,4.01944423,167.34,167.32,0.66]
[1762199913788,7.98307937,167.37,167.32,0.66]
[1762199913789,4.01944423,167.33,167.32,0.66]
[1762199914501,4.01944423,167.33,167.32,6.63657183]
[1762199914714,13.28021232,167.33,167.26,5.97871577]
[1762199914891,2.97444389,167.29,167.26,0.66]
[1762199915207,6.9914463,167.31,167.28,16.44141885]
[1762199915392,6.98985913,167.3,167.25,6.73904655]
[1762199915597,2.97444389,167.3,167.26,0.66]
[1762199916022,4.01305457,167.29,167.26,0.66]
[1762199916334,4.01305457,167.29,167.25,0.1]
[1762199916335,12.76327158,167.27,167.25,0.1]
[1762199916541,16.77282718,167.26,167.25,0.1]
[1762199917311,12.76327158,167.26,167.25,0.1]
[1762199917626,9.78882769,167.27,167.25,0.1]
[1762199917941,17.0797635,167.27,167.25,0.1]
[1762199918116,12.76327158,167.27,167.25,0.1]
[1762199918317,3.28444389,167.26,167.25,0.1]
[1762199918508,13.2672902,167.26,167.25,0.1]
[1762199919833,32.0358218,167.26,167.25,0.1]
[1762199922936,32.0358218,167.26,167.25,1e-08]
[1762199923536,9.78882769,167.25,167.24,0.1]
[1762199923739,30.63417329,167.25,167.24,0.1]
[1762199924225,25.91494446,167.25,167.24,0.1]
[1762199924409,24.99097042,167.25,167.24,0.1]
[1762199924612,30.97004366,167.25,167.24,0.1]
[1762199925619,43.22250057,167.25,167.24,0.1]
[1762199925838,7.88738152,167.25,167.24,0.1]
[1762199926340,28.47938152,167.25,167.24,0.1]
[1762199926638,7.88738152,167.25,167.24,0.1]
[1762199926844,1.90830828,167.25,167.24,0.1]
[1762199927225,2.21830828,167.25,167.24,0.1]
[1762199928749,9.78882769,167.27,167.24,0.76]
[1762199928933,9.78882769,167.29,167.24,6.73936394]
[1762199929129,1.90830828,167.26,167.24,0.1]
[1762199929334,1.90830828,167.25,167.24,0.1]
[1762199929646,11.69713597,167.25,167.24,0.1]
[1762199930140,8.30803476,167.29,167.24,0.1]
[1762199930447,1.90830828,167.27,167.24,0.76]
[1762199930738,7.88681132,167.27,167.24,0.76]
[1762199930918,7.88681132,167.27,167.24,0.1]
[1762199931115,1.90830828,167.25,167.24,0.1]
[1762199931521,5.97850304,167.27,167.24,0.1]
[1762199931730,1.90830828,167.26,167.24,0.1]
[1762199931935,7.88681132,167.27,167.24,0.1]
[1762199932441,17.67522476,167.28,167.25,0.66]
[1762199932641,5.97766078,167.29,167.25,0.66]
[1762199932845,26.56966078,167.29,167.25,0.66]
[1762199933039,26.56966078,167.29,167.25,6.63901857]
[1762199933641,26.56966078,167.29,167.25,5.97901857]
[1762199933948,28.47796906,167.29,167.26,0.66]
[1762199934529,22.50030828,167.29,167.26,0.66]
[1762199934943,26.56973146,167.29,167.26,0.66]
[1762199935132,22.50030828,167.29,167.26,0.66]
[1762199935455,28.47804739,167.29,167.26,0.66]
[1762199936057,1.90830828,167.28,167.26,0.66]
[1762199936553,9.78882769,167.27,167.24,0.1]
[1762199936849,9.78882769,167.27,167.24,0.76]
[1762199937549,11.69713597,167.27,167.24,0.76]
[1762199937730,1.90830828,167.25,167.24,0.1]
[1762199938623,7.88738152,167.25,167.24,0.1]
[1762199939433,9.95451848,167.26,167.24,0.1]
[1762199939638,9.78882769,167.25,167.24,0.1]
[1762199940260,11.69713597,167.25,167.24,0.1]
[1762199940437,9.78882769,167.25,167.24,0.1]
[1762199940753,11.69713597,167.25,167.24,0.1]
[1762199941049,9.78882769,167.25,167.24,0.1]
[1762199941248,7.99803476,167.28,167.24,0.76]
[1762199941249,15.88435527,167.28,167.24,0.76]
[1762199941546,1.90830828,167.25,167.24,0.1]
[1762199941945,8.83754234,167.27,167.24,0.76]
[1762199942325,11.69713597,167.27,167.24,0.76]
[1762199942553,1.90830828,167.26,167.24,0.76]
[1762199942756,1.90830828,167.27,167.24,0.76]
[1762199943051,7.886691,167.27,167.24,0.76]
[1762199943225,11.69713597,167.25,167.24,0.1]
[1762199944755,11.69713597,167.25,167.2,9.88882769]
[1762199944756,30.38082769,167.21,167.2,0.1]
[1762199945048,30.38082769,167.21,167.07,11.69713597]
[1762199945049,9.78882769,167.15,167.07,11.69713597]
[1762199945346,9.78882769,167.15,167.08,0.78]
[1762199945347,11.83929754,167.14,167.08,0.78]
[1762199945561,16.12615894,167.14,167.08,0.78]
[1762199946350,19.19333327,167.14,167.08,0.78]
[1762199946740,25.17634152,167.14,167.08,0.78]
[1762199946933,24.86634152,167.14,167.09,0.68]
[1762199947139,25.17634152,167.14,167.09,0.68]
[1762199947346,25.17634152,167.14,167.08,0.1]
[1762199947849,24.86634152,167.14,167.08,0.78]
[1762199948044,25.17634152,167.14,167.08,0.78]
[1762199949050,24.72417995,167.14,167.08,0.1]
[1762199949274,24.72417995,167.14,167.04,20.592]
[1762199949275,20.592,167.12,166.82,29.37596447]
[1762199949576,0.14216157,167.01,166.96,0.1]
[1762199949725,4.97548261,166.97,166.96,0.1]
[1762199949932,4.97548261,166.99,166.96,0.1]
[1762199950526,9.78882769,166.98,166.96,0.78]
[1762199951032,9.78882769,166.99,166.96,0.78]
[1762199951235,4.97548261,166.98,166.96,0.78]
[1762199951441,9.78882769,167.0,166.96,0.78]
[1762199951656,5.98694845,167.03,166.96,0.78]
[1762199951838,4.97548261,167.02,166.96,0.78]
[1762199952042,4.97548261,167.01,166.96,0.78]
[1762199952241,20.95431958,167.03,166.96,0.1]
[1762199952242,0.14216157,167.0,166.96,0.1]
[1762199952449,0.14216157,167.0,166.86,5.99299816]
[1762199952450,5.98981731,166.95,166.86,5.99299816]
[1762199952647,4.97548261,166.93,166.86,45.27057989]
[1762199952832,4.97548261,166.93,166.87,0.68]
[1762199953155,4.97548261,166.92,166.87,0.68]
[1762199953357,0.25216157,166.98,166.89,20.592]
[1762199953574,4.97548261,166.96,166.89,20.592]
[1762199953860,4.97548261,166.95,166.9,0.68]
[1762199954434,9.78882769,166.97,166.9,6.67125439]
[1762199954435,4.97548261,166.96,166.9,6.67125439]
[1762199954633,9.78882769,166.97,166.9,6.67125439]
[1762199954848,4.97548261,166.99,166.91,0.68]
[1762199955054,4.97548261,166.98,166.91,0.68]
[1762199955269,4.97548261,166.97,166.91,0.68]
[1762199955838,4.97548261,166.96,166.91,0.68]
[1762199956340,4.97548261,166.95,166.91,21.272]
[1762199956543,4.97548261,166.92,166.91,0.68]
[1762199957036,4.97548261,166.93,166.91,0.68]
[1762199957847,5.98917575,166.97,166.91,0.68]
[1762199958055,9.78882769,166.96,166.91,0.68]
[1762199958246,14.7643103,166.96,166.91,0.68]
[1762199958767,9.78882769,166.97,166.94,20.592]
[1762199959155,9.78882769,166.97,166.94,21.272]
[1762199959554,4.97548261,166.98,166.94,21.272]
[1762199959555,4.97548261,166.99,166.95,0.68]
[1762199959759,9.78882769,167.0,166.95,0.68]
[1762199959954,14.7643103,167.0,166.95,0.68]
[1762199960553,9.78882769,167.0,166.95,6.66970804]
[1762199960943,9.78882769,167.01,166.96,0.68]
[1762199961150,10.96203042,167.05,166.96,0.68]
[1762199961468,4.97548261,167.03,166.96,0.68]
[1762199962466,10.96274229,167.03,166.97,5.98909983]
[1762199962846,10.96274229,167.03,166.98,0.68]
[1762199963051,14.7643103,167.04,166.98,0.68]
[1762199963539,4.97548261,167.01,166.98,0.68]
[1762199963741,4.97548261,167.02,166.98,0.68]
[1762199963944,4.97548261,167.0,166.98,0.68]
[1762199964343,4.97548261,167.0,166.95,0.68]
[1762199964344,5.98874116,166.98,166.95,0.68]
[1762199964556,10.96422377,166.98,166.95,0.68]
[1762199965451,10.96422377,166.98,166.92,26.58283413]
[1762199965769,4.97548261,166.97,166.93,0.68]
[1762199965950,4.97548261,166.96,166.93,0.68]
[1762199966266,4.97548261,166.95,166.93,0.68]
[1762199967352,4.97548261,166.96,166.93,0.68]
[1762199967955,4.97548261,166.95,166.93,0.68]
[1762199968544,10.9653367,166.95,166.93,0.68]
[1762199968953,4.97548261,166.95,166.93,0.68]
[1762199969669,10.96531144,166.95,166.93,0.68]
[1762199969852,4.97548261,166.95,166.93,0.68]
[1762199971361,4.97548261,166.94,166.93,0.68]
[1762199971556,9.78882769,166.93,166.89,0.66]
[1762199971758,4.97548261,166.92,166.89,0.66]
[1762199972057,4.97548261,166.93,166.89,21.252]
[1762199972249,4.97548261,166.92,166.89,21.252]
[1762199972589,4.97548261,166.92,166.9,0.67]
[1762199973073,10.96626678,166.93,166.9,0.67]
[1762199973476,4.97548261,166.92,166.9,0.67]
[1762199973968,4.97548261,166.91,166.9,0.67]
[1762199974268,20.96712155,166.93,166.87,0.67]
[1762199974477,4.97548261,166.92,166.88,0.67]
[1762199974772,4.97548261,166.93,166.88,5.99231524]
[1762199975076,4.97548261,166.91,166.77,29.98141152]
[1762199975282,4.97548261,166.84,166.78,0.67]
[1762199975461,9.78882769,166.88,166.78,0.67]
[1762199975784,4.97548261,166.9,166.78,0.67]
[1762199975785,4.97548261,166.86,166.78,0.67]
[1762199976074,4.97548261,166.84,166.78,21.262]
[1762199976449,4.97548261,166.84,166.79,0.67]
[1762199976652,4.97548261,166.83,166.79,0.67]
[1762199977059,4.97548261,166.84,166.79,0.67]
[1762199977547,5.98945855,166.96,166.81,0.14216157]
[1762199977954,4.97548261,166.94,166.83,0.14216157]
[1762199978357,10.96576098,166.94,166.85,20.97692538]
[1762199978664,4.97548261,166.93,166.85,41.56892538]
[1762199978854,4.97548261,166.93,166.86,0.67]
[1762199979274,4.97548261,166.92,166.86,0.67]
[1762199979689,4.97548261,166.93,166.86,0.67]
[1762199980289,4.97548261,166.92,166.86,0.67]
[1762199980471,10.96641054,166.92,166.87,5.99268891]
[1762199980972,10.96641054,166.92,166.88,0.67]
[1762199981658,4.97548261,166.91,166.88,0.67]
[1762199982285,4.97548261,166.91,166.88,6.66228635]
[1762199982481,4.97548261,166.91,166.88,0.67]
[1762199982658,4.97548261,166.91,166.89,0.67]
[1762199983355,4.97548261,166.91,166.85,20.592]
[1762199983356,4.97548261,166.9,166.86,5.99289475]
[1762199983575,4.97548261,166.89,166.86,6.66289475]
[1762199983777,4.97548261,166.89,166.87,0.67]
[1762199984383,4.97548261,166.89,166.87,6.66264616]
[1762199984707,4.97548261,166.9,166.87,6.66264616]
[1762199985184,4.97548261,166.9,166.88,0.67]
[1762199985493,9.91921793,166.92,166.88,0.67]
[1762199985673,10.96641947,166.92,166.88,6.66216043]
[1762199985996,4.97548261,166.93,166.88,6.66216043]
[1762199986168,4.97548261,166.93,166.89,0.67]
[1762199986481,7.69160071,166.92,166.89,0.67]
[1762199986790,9.91779087,166.96,166.89,0.67]
[1762199986791,7.69160071,166.93,166.89,0.67]
[1762199987381,7.69160071,166.93,166.9,5.99161174]
[1762199987587,11.61984326,166.93,166.89,6.66191856]
[1762199988086,7.69160071,166.93,166.9,0.67]
[1762199988270,3.95041227,166.92,166.9,0.67]
[1762199988471,3.95041227,166.91,166.9,0.67]
[1762199988673,3.95041227,166.92,166.9,0.67]
[1762199988992,3.95041227,166.91,166.9,0.67]
[1762199989162,3.95041227,166.92,166.9,0.67]
[1762199989368,3.95041227,166.91,166.9,0.67]
[1762199991994,3.95041227,166.91,166.9,6.66161174]
[1762199992174,3.23041227,166.91,166.9,6.66161174]
[1762199992493,12.65963177,166.97,166.9,21.64064109]
[1762199992694,4.96803106,166.97,166.91,0.67]
[1762199993101,10.95719808,166.97,166.91,0.67]
[1762199993302,4.96803106,166.97,166.91,0.67]
[1762199993797,4.96803106,166.98,166.92,20.96812844]
[1762199994092,4.96803106,166.98,166.93,0.67]
[1762199994292,10.95679316,166.98,166.93,0.67]
[1762199995374,18.64839387,166.98,166.93,0.67]
[1762199995687,18.64839387,166.98,166.93,6.66044578]
[1762199996094,18.64839387,166.98,166.94,0.67]
[1762199996300,13.68036281,166.98,166.94,0.67]
[1762199996599,5.9887621,166.98,166.94,0.67]
[1762199996783,13.68036281,166.98,166.94,0.67]
[1762199997486,12.81163116,166.98,166.94,0.67]
[1762199997692,4.96803106,167.0,166.94,6.66016279]
[1762199997985,13.68006628,166.99,166.94,0.67]
[1762199998192,7.69160071,166.97,166.94,0.67]
[1762199998874,7.69160071,166.96,166.9,20.592]
[1762199999077,7.69160071,166.94,166.91,0.67]
[1762199999394,0.67,166.96,166.85,12.64]
[1762199999395,7.69160071,166.93,166.87,14.98110957]
[1762199999575,7.69160071,166.95,166.88,20.97305248]
[1762199999774,7.69160071,166.95,166.89,0.67]
[1762200000174,7.69160071,166.96,166.91,20.592]
[1762200000370,4.96803106,166.99,166.95,20.592]
[1762200000619,4.96803106,166.99,166.95,0.67]
[1762200000900,12.65963177,166.99,166.96,0.67]
[1762200001115,4.96803106,166.99,166.96,0.67]
[1762200001409,4.96803106,166.99,166.93,20.592]
[1762200001410,4.96803106,166.98,166.94,0.67]
[1762200001596,4.96803106,166.99,166.94,0.67]
[1762200001987,10.95644321,166.99,166.94,6.66017452]
[1762200002300,10.95644321,166.99,166.82,4.7341079]
[1762200002301,7.69160071,166.97,166.91,0.67]
[1762200002507,7.69160071,166.96,166.91,0.67]
[1762200002989,0.68,166.96,166.91,0.67]
[1762200003314,12.65963177,166.97,166.91,6.66122144]
[1762200003315,13.68099123,166.97,166.91,6.66122144]
[1762200003617,5.98939052,166.97,166.91,6.66122144]
[1762200003775,4.96803106,167.0,166.92,0.7]
[1762200004114,3.98598758,166.99,166.92,0.7]
[1762200004416,3.98598758,166.98,166.92,0.7]
[1762200004578,3.98598758,167.0,166.92,0.7]
[1762200004777,3.98598758,166.99,166.92,0.7]
[1762200005007,6.66771902,167.01,166.92,0.7]
[1762200005008,3.98598758,166.98,166.92,0.7]
[1762200005178,4.96803106,167.02,166.94,20.592]
[1762200005179,3.98598758,167.0,166.94,20.592]
[1762200005379,3.98598758,167.04,166.98,20.592]
[1762200005716,6.65259116,167.11,166.98,20.592]
[1762200005717,5.98372426,167.12,167.02,20.592]
[1762200005914,3.98928244,167.11,167.02,20.592]
[1762200006113,3.98928244,167.1,167.03,0.7]
[1762200006410,7.69160071,167.06,166.98,0.7]
[1762200006609,13.77811013,167.07,167.01,0.7]
[1762200006816,3.98928244,167.06,167.01,0.7]
[1762200006998,11.68088315,167.05,166.97,0.7]
[1762200007206,3.98928244,167.04,166.97,0.7]
[1762200007400,3.98928244,167.06,166.98,5.98874116]
[1762200007715,5.98551505,167.07,166.98,20.96059407]
[1762200008021,3.98928244,167.06,166.99,0.7]
[1762200009214,10.65479749,167.07,166.99,0.7]
[1762200009387,25.61858512,167.07,167.0,5.98802395]
[1762200009590,3.98928244,167.06,167.0,5.98802395]
[1762200009789,3.98928244,167.06,167.01,0.7]
[1762200010192,3.98928244,167.09,167.01,0.7]
[1762200010414,6.66473718,167.1,167.01,0.7]
[1762200010600,10.65401962,167.1,167.01,0.7]
[1762200010799,6.66473718,167.1,167.01,0.7]
[1762200011002,3.98928244,167.09,167.01,0.7]
[1762200011498,3.98928244,167.09,167.02,5.9873069]
[1762200011702,4.98634164,167.12,167.02,5.9873069]
[1762200011703,3.98928244,167.12,167.05,20.592]
[1762200011905,0.2,167.13,167.06,0.7]
[1762200012103,0.2,167.13,167.07,20.592]
[1762200012521,0.2,167.13,167.06,0.7]
[1762200012522,6.18338813,167.13,167.06,0.7]
[1762200012713,0.2,167.13,167.06,0.7]
[1762200013425,0.2,167.13,167.07,20.94930268]
[1762200013903,0.2,167.13,167.08,21.292]
[1762200014100,0.2,167.13,167.08,0.7]
[1762200014312,0.2,167.13,167.09,0.7]
[1762200015390,0.2,167.13,167.1,20.592]
[1762200015595,0.2,167.13,167.11,5.98408234]
[1762200015817,0.2,167.13,167.11,6.68408234]
[1762200015990,0.2,167.13,167.12,0.7]
[1762200016625,0.2,167.13,167.09,6.68465699]
[1762200016930,0.2,167.13,167.09,0.7]
[1762200017098,0.2,167.13,167.1,0.7]
[1762200017298,0.2,167.13,167.04,0.7]
[1762200017299,0.68,167.12,167.04,0.7]
[1762200017517,5.98408234,167.11,167.05,5.98623166]
[1762200017996,6.66380435,167.12,167.05,5.98623166]
[1762200018316,6.66380435,167.12,167.06,0.7]
[1762200018317,0.68,167.12,167.06,0.7]
[1762200019323,0.68,167.12,167.04,5.98653121]
[1762200019524,0.68,167.12,167.07,5.98551505]
[1762200019901,6.66377606,167.12,167.05,5.98623166]
[1762200020124,6.66377606,167.12,167.05,6.68623166]
[1762200020319,6.66377606,167.12,167.06,0.7]
[1762200020914,6.18337502,167.13,167.06,0.7]
[1762200021334,6.86337502,167.13,167.06,0.7]
[1762200021523,6.86337502,167.13,167.07,5.98551505]
[1762200021833,0.2,167.13,167.07,20.94930268]
[1762200022034,0.2,167.13,167.08,0.7]
[1762200022337,0.68,167.12,167.05,0.7]
[1762200022523,0.2,167.13,167.06,0.7]
[1762200023114,0.88,167.13,167.06,0.7]
[1762200023314,0.2,167.13,167.06,0.7]
[1762200023534,0.2,167.13,167.07,20.94930268]
[1762200023930,0.2,167.13,167.08,0.7]
[1762200025147,0.2,167.13,167.1,20.592]
[1762200025637,0.2,167.13,167.11,6.68408234]
[1762200026335,0.2,167.13,167.12,0.7]
[1762200027643,0.2,167.13,167.12,27.27572426]
[1762200028752,0.2,167.13,167.12,27.41788583]
[1762200029548,0.2,167.17,167.12,42.3771965]
[1762200029746,0.2,167.17,167.14,0.14216157]
[1762200030263,0.2,167.17,167.15,0.69]